bitfinex/quotes_BTCUSD_20220111
["timestamp","ask_amount","ask_price","bid_price","bid_amount"]
[1641910680221,0.008,41724.0,41723.0,0.71300002]
[1641910680471,0.008,41724.0,41723.0,0.375036]
[1641910680874,0.04676326,41725.0,41723.0,0.69069637]
[1641910681070,0.00019028,41725.0,41724.0,0.375036]
[1641910681471,0.08018979,41728.0,41724.0,0.375036]
[1641910681672,0.08018979,41728.0,41724.0,0.387036]
[1641910681873,0.08018979,41728.0,41724.0,0.487036]
[1641910682271,0.08018979,41728.0,41726.0,0.33076881]
[1641910682473,0.08018979,41728.0,41724.0,0.112]
[1641910682872,0.14011943,41728.0,41721.0,0.51360766]
[1641910683272,0.08018979,41728.0,41721.0,0.51360766]
[1641910683473,0.08018979,41728.0,41723.0,0.27585336]
[1641910683874,0.24953707,41725.0,41723.0,0.27585336]
[1641910684126,0.24953707,41725.0,41721.0,0.42560766]
[1641910684923,0.24953707,41725.0,41721.0,0.73719096]
[1641910685124,0.05993437,41725.0,41722.0,0.2669989]
[1641910685337,0.08018979,41728.0,41722.0,0.2669989]
[1641910685523,0.08018979,41728.0,41722.0,0.2809989]
[1641910686123,0.32299147,41726.0,41722.0,0.2809989]
[1641910686325,0.3829225,41726.0,41722.0,0.2809989]
[1641910686523,0.00018979,41724.0,41722.0,0.2809989]
[1641910686924,0.00018979,41724.0,41722.0,0.2669989]
[1641910687525,0.00018979,41724.0,41722.0,0.2819989]
[1641910687727,0.00018979,41724.0,41723.0,0.375036]
[1641910688470,0.00018979,41724.0,41722.0,0.2819989]
[1641910688672,0.00018979,41724.0,41722.0,0.015]
[1641910689471,0.00018979,41724.0,41722.0,0.255]
[1641910689671,0.00018979,41724.0,41722.0,0.269]
[1641910690873,0.00018979,41724.0,41722.0,0.24]
[1641910691074,0.06012489,41724.0,41722.0,0.24]
[1641910691484,0.0001893,41723.0,41722.0,0.24]
[1641910691722,0.0001893,41723.0,41722.0,0.253]
[1641910692920,0.0001893,41723.0,41722.0,0.24]
[1641910693522,0.0001893,41723.0,41722.0,0.615036]
[1641910693723,0.0051893,41723.0,41722.0,0.630036]
[1641910694825,0.0001893,41723.0,41722.0,0.615036]
[1641910695676,0.0001893,41723.0,41722.0,0.628036]
[1641910696373,0.00740761,41730.0,41722.0,0.628036]
[1641910696573,0.00740761,41730.0,41722.0,0.253]
[1641910696773,0.263606,41729.0,41722.0,0.253]
[1641910696973,0.313606,41729.0,41727.0,0.26924417]
[1641910697173,0.05,41729.0,41727.0,0.26924417]
[1641910697375,0.00740761,41730.0,41727.0,0.26924417]
[1641910697574,0.03,41729.0,41727.0,0.27424417]
[1641910698875,0.05740761,41730.0,41727.0,0.26924417]
[1641910699130,0.00740761,41730.0,41727.0,0.26924417]
[1641910699723,0.03640761,41730.0,41727.0,0.27424417]
[1641910700723,0.03640761,41730.0,41727.0,0.005]
[1641910700929,0.31273793,41729.0,41722.0,0.24]
[1641910701325,0.36273793,41729.0,41722.0,0.24]
[1641910701527,0.36293017,41729.0,41722.0,0.24]
[1641910701727,0.37293017,41729.0,41722.0,0.25]
[1641910701929,0.01019224,41729.0,41725.0,0.33319051]
[1641910702128,0.01019224,41729.0,41725.0,0.43319051]
[1641910702978,0.00019224,41729.0,41725.0,0.43319051]
[1641910703584,0.06711687,41729.0,41725.0,0.008]
[1641910703779,0.36405611,41728.0,41725.0,0.008]
[1641910703978,0.41405611,41728.0,41725.0,0.008]
[1641910704179,0.31619371,41727.0,41725.0,0.008]
[1641910704378,0.05,41728.0,41725.0,0.008]
[1641910704681,0.00719224,41729.0,41726.0,0.0477]
[1641910704880,0.00719224,41729.0,41727.0,0.00121262]
[1641910704881,0.00019224,41729.0,41727.0,0.00121262]
[1641910705082,0.00019224,41729.0,41728.0,0.0477]
[1641910705480,0.00019224,41729.0,41728.0,0.62346908]
[1641910705679,0.00019224,41729.0,41728.0,0.63246908]
[1641910705980,0.00019224,41729.0,41728.0,1.00750508]
[1641910706184,0.02401522,41733.0,41729.0,0.80436032]
[1641910706479,0.02401522,41733.0,41730.0,0.0477]
[1641910707728,0.02401522,41733.0,41730.0,0.0547]
[1641910709732,0.02401522,41733.0,41730.0,0.0627]
[1641910710573,0.02401522,41733.0,41730.0,0.122609]
[1641910710774,0.02401522,41733.0,41730.0,0.115609]
[1641910710973,0.02401522,41733.0,41730.0,0.107609]
[1641910711574,0.02401522,41733.0,41730.0,0.115609]
[1641910711976,0.02401522,41733.0,41730.0,0.0557]
[1641910712979,0.02401522,41733.0,41730.0,0.0477]
[1641910713577,0.02401522,41733.0,41730.0,0.0567]
[1641910714228,0.02401522,41733.0,41730.0,0.116609]
[1641910714926,0.02401522,41733.0,41730.0,0.107609]
[1641910715126,0.02401522,41733.0,41730.0,0.0477]
[1641910715728,0.02401522,41733.0,41730.0,0.0557]
[1641910716928,0.02401522,41733.0,41730.0,0.0477]
[1641910717530,0.08393116,41733.0,41730.0,0.0477]
[1641910717731,0.06393116,41733.0,41730.0,0.0557]
[1641910718372,0.02401522,41733.0,41730.0,0.0557]
[1641910718872,0.02401522,41733.0,41730.0,0.0477]
[1641910719476,0.02401522,41733.0,41727.0,0.00121262]
[1641910719678,0.02401522,41733.0,41730.0,0.002]
[1641910719876,0.375036,41732.0,41730.0,0.002]
[1641910720075,0.82056465,41731.0,41730.0,0.002]
[1641910720276,1.17637882,41731.0,41730.0,0.002]
[1641910720875,1.17637882,41731.0,41723.0,0.30204375]
[1641910721076,1.12651082,41731.0,41723.0,0.30204375]
[1641910721378,0.62651082,41731.0,41723.0,0.58488609]
[1641910721639,0.25559346,41728.0,41723.0,0.59688609]
[1641910722027,0.05992513,41727.0,41723.0,0.31404375]
[1641910723029,0.05992513,41727.0,41723.0,0.30204375]
[1641910723430,0.37778249,41731.0,41724.0,0.375036]
[1641910723630,0.05,41727.0,41723.0,0.31804375]
[1641910723828,0.05,41727.0,41724.0,0.375036]
[1641910724029,0.00721784,41731.0,41724.0,0.375036]
[1641910724529,0.29897298,41731.0,41724.0,0.375036]
[1641910724728,0.29897298,41731.0,41723.0,0.37795875]
[1641910724930,0.29897298,41731.0,41723.0,0.36195875]
[1641910725381,0.29897298,41731.0,41724.0,0.375036]
[1641910725782,0.29897298,41731.0,41723.0,0.37395875]
[1641910725984,0.29897298,41731.0,41724.0,0.375036]
[1641910726186,0.29897298,41731.0,41723.0,0.31404375]
[1641910726383,0.05992169,41729.0,41723.0,0.31404375]
[1641910726990,0.05992169,41729.0,41723.0,0.30204375]
[1641910727784,0.05992169,41729.0,41723.0,0.31404375]
[1641910728788,0.05992169,41729.0,41723.0,0.012]
[1641910728789,0.31751454,41728.0,41723.0,0.012]
[1641910728987,2.47536158,41724.0,41722.0,0.24]
[1641910729243,1.25927253,41723.0,41722.0,0.24]
[1641910729644,1.57810415,41723.0,41722.0,0.264]
[1641910730340,1.02810415,41723.0,41722.0,0.264]
[1641910730745,1.07810415,41723.0,41722.0,0.264]
[1641910730942,1.07810415,41723.0,41722.0,0.24]
[1641910731742,1.09110415,41723.0,41722.0,0.24]
[1641910732344,0.75686762,41723.0,41722.0,0.24]
[1641910732545,0.388036,41723.0,41722.0,0.24]
[1641910732749,0.013,41723.0,41722.0,0.24]
[1641910732984,0.10992611,41726.0,41722.0,0.24]
[1641910733384,0.05992611,41726.0,41722.0,0.50436604]
[1641910733788,0.08092611,41726.0,41722.0,0.50436604]
[1641910734184,0.08092611,41726.0,41722.0,0.24]
[1641910734688,0.13092611,41726.0,41722.0,0.24]
[1641910734883,0.10992611,41726.0,41722.0,0.24]
[1641910735085,0.31152675,41725.0,41722.0,0.24]
[1641910735288,0.25967322,41724.0,41722.0,0.24]
[1641910735593,0.33243944,41723.0,41722.0,0.24]
[1641910735784,0.38243944,41723.0,41722.0,0.24]
[1641910736830,0.48243944,41723.0,41722.0,0.24]
[1641910737730,0.49343944,41723.0,41722.0,0.24]
[1641910737929,0.54343944,41723.0,41722.0,0.24]
[1641910738332,0.91847544,41723.0,41722.0,0.24]
[1641910738931,0.90747544,41723.0,41722.0,0.24]
[1641910739332,0.75747544,41723.0,41722.0,0.24]
[1641910739733,0.76847544,41723.0,41722.0,0.24]
[1641910739937,0.436036,41723.0,41722.0,0.24]
[1641910740389,0.061,41723.0,41722.0,0.24]
[1641910740584,0.33952289,41723.0,41722.0,0.24]
[1641910740785,1.15,41722.0,41721.0,0.18159486]
[1641910740983,1.95594479,41722.0,41721.0,0.18159486]
[1641910741382,1.1457628,41722.0,41721.0,0.18159486]
[1641910741585,1.1934628,41722.0,41721.0,0.18159486]
[1641910741784,1.54177613,41722.0,41721.0,0.18159486]
[1641910741985,1.80172313,41722.0,41720.0,0.0011]
[1641910742186,0.46466061,41721.0,41720.0,0.0011]
[1641910742389,1.675036,41720.0,41712.0,0.00347602]
[1641910742591,0.05995105,41719.0,41712.0,0.00347602]
[1641910742785,0.39100775,41718.0,41712.0,0.00347602]
[1641910742985,0.375036,41717.0,41712.0,0.00347602]
[1641910743189,0.375036,41717.0,41712.0,0.0011]
[1641910743190,0.522736,41717.0,41712.0,0.0011]
[1641910743587,0.049868,41713.0,41711.0,0.0011]
[1641910743787,0.422736,41712.0,41711.0,0.0011]
[1641910743988,0.522736,41712.0,41711.0,0.0011]
[1641910744532,0.722736,41712.0,41711.0,0.0011]
[1641910744733,0.722736,41712.0,41701.0,0.0111]
[1641910744931,0.05709247,41708.0,41701.0,0.0111]
[1641910745139,0.00722447,41708.0,41701.0,0.0111]
[1641910745533,0.25351817,41705.0,41701.0,0.0111]
[1641910746135,0.57275563,41705.0,41701.0,0.0111]
[1641910746336,0.89919365,41705.0,41701.0,0.0111]
[1641910746734,0.89919365,41705.0,41702.0,0.00071133]
[1641910747337,0.57275563,41705.0,41702.0,0.00071133]
[1641910747540,0.25351817,41705.0,41702.0,0.00071133]
[1641910747740,0.26251817,41705.0,41702.0,0.00071133]
[1641910748177,0.009,41705.0,41702.0,0.00071133]
[1641910748377,0.3493257,41705.0,41702.0,0.00071133]
[1641910748579,0.66314741,41705.0,41702.0,0.00071133]
[1641910748979,0.07969384,41706.0,41702.0,0.00071133]
[1641910749180,0.31479697,41705.0,41702.0,0.00071133]
[1641910749781,0.32379697,41705.0,41702.0,0.00071133]
[1641910750288,0.009,41705.0,41702.0,0.00272236]
[1641910750483,0.009,41705.0,41702.0,0.00201103]
[1641910750981,0.00722447,41708.0,41702.0,0.00201103]
[1641910751183,0.00722447,41708.0,41702.0,0.34649634]
[1641910751637,0.00722447,41708.0,41702.0,0.00186488]
[1641910752730,0.00722447,41708.0,41704.0,0.1208949]
[1641910753531,0.05995415,41707.0,41704.0,0.1208949]
[1641910754933,0.05,41712.0,41706.0,0.26313433]
[1641910755134,1.184049,41721.0,41707.0,0.0477]
[1641910755135,1.1241,41721.0,41707.0,0.0477]
[1641910755384,0.3052,41726.0,41708.0,0.34681996]
[1641910755587,0.3052,41726.0,41709.0,0.422736]
[1641910755784,0.3052,41726.0,41709.0,0.472736]
[1641910756084,0.3052,41726.0,41717.0,0.30928625]
[1641910756085,0.31463753,41724.0,41717.0,0.30928625]
[1641910756583,0.37456786,41724.0,41717.0,0.30928625]
[1641910757184,0.28466983,41721.0,41716.0,0.0477]
[1641910757684,0.28466983,41721.0,41716.0,0.04829501]
[1641910757884,0.05993489,41720.0,41716.0,0.04829501]
[1641910758088,0.07401522,41719.0,41716.0,0.04829501]
[1641910759536,0.07401522,41719.0,41716.0,0.0477]
[1641910760742,1.3,41718.0,41707.0,1.26425075]
[1641910760941,1.3,41718.0,41700.0,1.1346315]
[1641910760942,0.6,41708.0,41687.0,0.6609065]
[1641910761140,0.79290638,41705.0,41678.0,0.80398161]
[1641910761343,0.79290638,41705.0,41647.0,8.4944516]
[1641910761344,0.01252988,41661.0,41647.0,8.4944516]
[1641910761541,0.01252988,41661.0,41647.0,5.078827]
[1641910761542,0.199,41656.0,41647.0,5.078827]
[1641910761842,0.199,41656.0,41646.0,0.00128093]
[1641910761843,0.03736,41647.0,41637.0,0.11065761]
[1641910762038,0.03736,41647.0,41638.0,0.24495692]
[1641910762039,0.0966,41646.0,41638.0,0.24495692]
[1641910762236,0.0955,41646.0,41638.0,0.23995692]
[1641910762438,0.120135,41641.0,41630.0,1.42210248]
[1641910762640,0.12014177,41636.0,41630.0,0.1]
[1641910762886,0.12014177,41636.0,41626.0,0.03551251]
[1641910762887,1.349868,41632.0,41626.0,0.03551251]
[1641910763085,0.375036,41628.0,41626.0,0.03551251]
[1641910763290,0.049868,41627.0,41626.0,0.03551251]
[1641910763485,0.53387296,41627.0,41626.0,0.0645]
[1641910763687,0.53387296,41627.0,41626.0,0.029]
[1641910763688,0.48400496,41627.0,41626.0,0.029]
[1641910763885,0.48274708,41627.0,41626.0,0.76824801]
[1641910764089,0.06006779,41630.0,41627.0,0.75]
[1641910764285,0.06006779,41630.0,41629.0,0.375036]
[1641910764486,0.02991632,41632.0,41629.0,0.375036]
[1641910764686,0.00120864,41631.0,41627.0,0.89314287]
[1641910764886,0.00120864,41631.0,41628.0,0.375036]
[1641910765087,0.00120864,41631.0,41626.0,0.24]
[1641910765286,0.00129781,41629.0,41628.0,0.00058597]
[1641910766186,0.06006069,41629.0,41628.0,0.00058597]
[1641910766387,0.06006069,41629.0,41626.0,0.60346341]
[1641910766645,0.06006069,41629.0,41627.0,0.34298317]
[1641910767040,0.11006069,41629.0,41627.0,0.34298317]
[1641910767242,0.11006069,41629.0,41626.0,0.60346341]
[1641910767643,0.00128134,41628.0,41626.0,0.60346342]
[1641910768042,0.00128134,41628.0,41626.0,0.12284858]
[1641910768242,0.38227351,41627.0,41626.0,0.12284858]
[1641910768641,0.43227351,41627.0,41626.0,0.12284858]
[1641910768841,0.43227351,41627.0,41626.0,0.16998516]
[1641910769045,0.00723751,41627.0,41626.0,0.16998516]
[1641910769445,0.00723751,41627.0,41626.0,0.54502116]
[1641910769844,0.00723751,41627.0,41626.0,0.82461883]
[1641910770145,0.00723751,41627.0,41626.0,1.29479626]
[1641910770390,0.02401522,41636.0,41628.0,0.00122267]
[1641910770588,0.0999,41644.0,41630.0,1.1]
[1641910770791,0.0999,41644.0,41643.0,0.26464746]
[1641910770994,0.0999,41644.0,41643.0,0.63968346]
[1641910771188,0.0999,41644.0,41643.0,0.0477]
[1641910771391,0.57176664,41644.0,41643.0,0.0477]
[1641910771591,0.57622074,41644.0,41643.0,0.0477]
[1641910771789,0.48422074,41644.0,41643.0,0.0897]
[1641910771990,0.1079,41644.0,41643.0,0.0897]
[1641910772189,0.482936,41644.0,41643.0,0.0897]
[1641910772790,0.1079,41644.0,41643.0,0.49313527]
[1641910773091,0.0999,41644.0,41643.0,1.25795062]
[1641910773388,0.37186664,41650.0,41643.0,1.25795062]
[1641910773593,0.0999,41644.0,41643.0,0.88291462]
[1641910773794,0.14039049,41667.0,41643.0,0.88291462]
[1641910773795,0.180102,41666.0,41644.0,1.57514657]
[1641910773991,0.14033049,41667.0,41659.0,0.5967]
[1641910773992,0.00129421,41661.0,41659.0,0.5967]
[1641910774239,0.47100844,41665.0,41660.0,0.0477]
[1641910774436,0.47100844,41665.0,41664.0,0.0999]
[1641910774437,0.1,41665.0,41664.0,0.0999]
[1641910774638,0.00125998,41668.0,41664.0,0.0999]
[1641910774639,0.00125998,41668.0,41666.0,0.0999]
[1641910774839,0.00125998,41668.0,41667.0,0.0477]
[1641910775138,0.42333479,41676.0,41667.0,0.0477]
[1641910775139,0.10124806,41674.0,41667.0,0.0334]
[1641910775338,0.10124806,41674.0,41667.0,0.1333]
[1641910775539,0.10124806,41674.0,41670.0,0.0999]
[1641910775738,0.10124806,41674.0,41671.0,0.0477]
[1641910776142,0.1,41674.0,41671.0,0.0477]
[1641910776541,0.0023089,41672.0,41671.0,0.0477]
[1641910776742,1.6773449,41672.0,41671.0,0.0477]
[1641910776939,0.3773449,41672.0,41671.0,0.0477]
[1641910777139,0.3773449,41672.0,41661.0,0.00228067]
[1641910777140,0.31034015,41664.0,41661.0,0.00228067]
[1641910777340,0.3773449,41672.0,41669.0,0.00057084]
[1641910777341,0.0023089,41672.0,41669.0,0.00057084]
[1641910777543,0.1,41670.0,41662.0,0.43868892]
[1641910777884,0.060011,41671.0,41663.0,0.0477]
[1641910778182,0.1,41665.0,41663.0,0.0477]
[1641910778382,0.15,41665.0,41663.0,0.0477]
[1641910779483,0.1,41668.0,41663.0,0.0477]
[1641910779882,0.1,41668.0,41663.0,0.1097]
[1641910780084,0.1223329,41672.0,41663.0,0.1097]
[1641910780284,0.1,41670.0,41663.0,0.1097]
[1641910780485,0.060009,41671.0,41665.0,0.25064888]
[1641910780688,0.05,41671.0,41668.0,0.25262313]
[1641910780886,0.05,41671.0,41669.0,0.422736]
[1641910780887,0.00085752,41671.0,41669.0,0.422736]
[1641910781086,0.00085752,41671.0,41669.0,0.0477]
[1641910781939,0.00085752,41671.0,41669.0,0.1137]
[1641910782142,0.00195753,41672.0,41669.0,0.1137]
[1641910783141,0.00195753,41672.0,41670.0,0.375036]
[1641910783342,0.0011,41672.0,41671.0,0.0477]
[1641910783541,0.0011,41672.0,41671.0,0.422736]
[1641910783941,0.0011,41672.0,41671.0,0.427736]
[1641910784743,0.0011,41672.0,41671.0,0.380036]
[1641910785145,0.0011,41672.0,41671.0,0.375036]
[1641910785580,0.0011,41672.0,41668.0,0.63246248]
[1641910785783,0.0011,41672.0,41671.0,0.008]
[1641910785981,0.0011,41672.0,41671.0,0.0557]
[1641910787182,0.0011,41672.0,41671.0,0.0477]
[1641910787383,0.0011,41672.0,41671.0,0.422736]
[1641910787787,0.059998,41679.0,41671.0,0.422736]
[1641910787788,0.42129114,41681.0,41673.0,0.375036]
[1641910787985,0.42129114,41681.0,41672.0,1.525036]
[1641910787986,0.42,41681.0,41680.0,0.25199345]
[1641910788185,0.00128836,41691.0,41680.0,0.59962468]
[1641910788385,0.00128836,41691.0,41681.0,0.375678]
[1641910788584,0.1,41688.0,41682.0,0.0477]
[1641910788785,0.00128836,41691.0,41683.0,0.375678]
[1641910789158,0.1,41694.0,41684.0,0.0477]
[1641910789351,0.1,41694.0,41685.0,0.375678]
[1641910789546,0.1,41694.0,41686.0,0.0477]
[1641910789747,0.1,41694.0,41686.0,0.423378]
[1641910789947,0.059969,41698.0,41686.0,0.423378]
[1641910789948,0.11993985,41698.0,41690.0,0.29904587]
[1641910790248,0.00128714,41698.0,41694.0,0.33341056]
[1641910790646,0.00128714,41698.0,41691.0,0.0477]
[1641910790847,1.15,41692.0,41691.0,0.0477]
[1641910791049,1.52695961,41692.0,41691.0,0.0477]
[1641910791248,1.52695961,41692.0,41682.0,0.3305217]
[1641910791448,0.375678,41691.0,41681.0,0.0477]
[1641910791646,0.65,41682.0,41681.0,0.33130785]
[1641910791851,0.1,41682.0,41681.0,0.33130785]
[1641910792048,0.45,41682.0,41681.0,1.15894264]
[1641910792249,0.1,41682.0,41681.0,1.15894264]
[1641910792447,1.35,41682.0,41681.0,0.0477]
[1641910792750,1.775678,41682.0,41681.0,0.0477]
[1641910792990,0.0599965,41678.0,41670.0,0.37224231]
[1641910793190,0.1,41672.0,41670.0,0.00121789]
[1641910793389,0.1,41672.0,41669.0,0.27112765]
[1641910793589,0.1,41672.0,41671.0,0.46713361]
[1641910793891,0.1,41672.0,41671.0,0.84281161]
[1641910794689,0.1,41672.0,41671.0,0.375678]
[1641910794893,0.1,41672.0,41669.0,0.014]
[1641910795193,0.22276,41672.0,41671.0,0.23874606]
[1641910795390,0.72276,41672.0,41671.0,0.23874606]
[1641910795589,1.09968659,41672.0,41671.0,0.23874606]
[1641910795990,1.2026915,41672.0,41671.0,0.24274606]
[1641910796639,1.20261347,41672.0,41671.0,0.24274606]
[1641910797236,1.15961347,41672.0,41671.0,0.23874606]
[1641910797934,1.20461347,41672.0,41671.0,0.23874606]
[1641910798240,1.20461347,41672.0,41667.0,0.00055749]
[1641910798241,0.375678,41668.0,41667.0,7.49e-06]
[1641910798438,0.83796964,41665.0,41661.0,0.00223027]
[1641910798636,1.40127105,41662.0,41661.0,0.00223027]
[1641910798836,1.88697869,41662.0,41661.0,0.00223027]
[1641910799035,1.88697869,41662.0,41650.0,0.23342924]
[1641910799237,1.88697869,41662.0,41654.0,0.2695578]
[1641910799238,0.375678,41661.0,41654.0,0.2695578]
[1641910799435,0.05,41661.0,41654.0,0.2695578]
[1641910799641,0.1,41655.0,41654.0,0.64058222]
[1641910799837,0.1,41655.0,41654.0,0.6452358]
[1641910800384,0.09641876,41672.0,41654.0,1.01626022]
[1641910800588,0.1,41671.0,41664.0,0.31476583]
[1641910800787,0.1,41665.0,41662.0,0.39210457]
[1641910800987,0.1,41665.0,41663.0,0.423378]
[1641910801187,0.1,41665.0,41663.0,0.0477]
[1641910801385,0.1,41665.0,41656.0,0.00219513]
[1641910801585,0.1,41657.0,41656.0,0.00219513]
[1641910801987,0.1,41657.0,41656.0,0.01819513]
[1641910802588,0.1,41657.0,41656.0,0.016]
[1641910803288,0.1,41657.0,41654.0,0.37010668]
[1641910803688,0.1,41657.0,41655.0,0.375678]
[1641910804539,0.120036,41667.0,41656.0,0.3795843]
[1641910804746,0.1,41657.0,41656.0,0.3795843]
[1641910804939,0.1,41657.0,41656.0,0.375678]
[1641910805544,0.00125974,41655.0,41654.0,0.00054909]
[1641910805742,1.67693774,41655.0,41654.0,0.00054909]
[1641910805941,0.48697171,41655.0,41654.0,0.00054909]
[1641910806144,0.77693774,41655.0,41654.0,0.00054908]
[1641910806344,0.42693774,41655.0,41654.0,0.00054908]
[1641910806543,0.425678,41655.0,41654.0,0.00054908]
[1641910806745,0.375678,41655.0,41654.0,0.00054908]
[1641910806943,0.136,41657.0,41651.0,0.27710914]
[1641910806944,0.036,41657.0,41651.0,0.27265822]
[1641910807146,0.336,41657.0,41656.0,0.25460899]
[1641910807347,0.00123157,41663.0,41656.0,0.25460899]
[1641910807547,0.70740303,41671.0,41661.0,0.44487649]
[1641910807548,0.36970872,41669.0,41661.0,0.44487649]
[1641910807744,0.58736603,41671.0,41661.0,0.44487649]
[1641910807745,0.00126678,41668.0,41661.0,0.44487649]
[1641910808385,0.060009,41670.0,41661.0,0.44487649]
[1641910808786,0.060009,41670.0,41661.0,0.82665878]
[1641910808986,0.46220607,41671.0,41661.0,0.38178229]
[1641910809186,0.375678,41670.0,41658.0,0.0442]
[1641910809386,0.202442,41670.0,41658.0,0.0442]
[1641910809586,0.060017,41666.0,41658.0,0.30043733]
[1641910809991,0.060017,41666.0,41658.0,0.012]
[1641910810489,0.060017,41666.0,41659.0,0.46322842]
[1641910811188,0.060017,41666.0,41660.0,0.26632535]
[1641910811645,0.05,41665.0,41660.0,0.26632535]
[1641910811831,0.060017,41666.0,41660.0,0.26632535]
[1641910811832,0.060017,41666.0,41660.0,0.004937]
[1641910812032,0.06001689,41665.0,41660.0,0.015937]
[1641910812539,0.11001689,41665.0,41660.0,0.015937]
[1641910813232,0.11001689,41665.0,41660.0,0.004937]
[1641910813634,0.060026,41663.0,41660.0,0.004937]
[1641910813933,0.120054,41661.0,41660.0,0.007]
[1641910814133,2.13910125,41661.0,41660.0,0.007]
[1641910814334,0.375678,41661.0,41660.0,0.007]
[1641910814535,1.35932808,41661.0,41652.0,0.00055736]
[1641910814734,0.09037473,41658.0,41652.0,0.00055736]
[1641910814935,0.00125526,41655.0,41652.0,0.00111474]
[1641910815140,1.3012969,41653.0,41652.0,0.00055738]
[1641910815385,1.48359971,41653.0,41652.0,0.00055738]
[1641910815585,1.53359971,41653.0,41652.0,0.00055738]
[1641910815984,1.54759971,41653.0,41652.0,0.00055738]
[1641910816187,1.54759971,41653.0,41650.0,0.00055064]
[1641910816385,0.00723226,41652.0,41650.0,0.00055064]
[1641910816590,0.675678,41651.0,41650.0,0.00055064]
[1641910816786,1.03717625,41651.0,41650.0,0.00055064]
[1641910816986,1.33717625,41651.0,41650.0,0.00055064]
[1641910817188,1.38517625,41651.0,41650.0,0.00055064]
[1641910817386,1.38517625,41651.0,41649.0,0.0999]
[1641910817587,1.51420589,41650.0,41649.0,0.0999]
[1641910817793,1.88988389,41650.0,41649.0,0.0999]
[1641910817987,2.03988389,41650.0,41649.0,0.0999]
[1641910818190,2.11242389,41650.0,41648.0,0.00055068]
[1641910818392,2.11242389,41650.0,41642.0,0.00220307]
[1641910818393,1.3,41648.0,41642.0,0.00220307]
[1641910818591,1.3,41648.0,41641.0,0.10210315]
[1641910818592,0.10854815,41644.0,41641.0,0.10210315]
[1641910818789,1.675678,41642.0,41641.0,0.10210315]
[1641910818988,1.675678,41642.0,41637.0,0.00050307]
[1641910818989,1.3,41641.0,41637.0,0.00050307]
[1641910819244,0.375678,41638.0,41637.0,0.00050307]
[1641910819744,0.425678,41638.0,41637.0,0.00050307]
[1641910819944,0.436678,41638.0,41637.0,0.00050307]
[1641910820745,0.78915537,41638.0,41637.0,0.00050307]
[1641910821147,0.77943127,41638.0,41637.0,0.00050307]
[1641910821348,0.06007021,41634.0,41629.0,0.0011]
[1641910821546,0.98801549,41633.0,41629.0,0.0011]
[1641910821745,0.060076,41631.0,41629.0,0.0011]
[1641910821946,1.03924712,41630.0,41629.0,0.0011]
[1641910822245,0.78924712,41630.0,41629.0,0.0011]
[1641910822647,1.15,41629.0,41628.0,0.0032]
[1641910822891,0.78267408,41629.0,41628.0,0.0032]
[1641910823291,2.08392766,41629.0,41626.0,0.00281063]
[1641910823493,2.13658936,41628.0,41626.0,0.00281063]
[1641910823690,0.83783048,41628.0,41626.0,0.00281063]
[1641910824090,1.2,41627.0,41626.0,0.00061063]
[1641910824290,1.2,41627.0,41626.0,0.00041063]
[1641910824291,1.84178797,41627.0,41626.0,0.00041063]
[1641910824493,0.84178797,41627.0,41626.0,0.00041063]
[1641910824692,0.84178797,41627.0,41625.0,0.00061065]
[1641910824893,0.74375335,41626.0,41625.0,0.00061065]
[1641910825091,0.84375335,41626.0,41625.0,0.00061065]
[1641910825294,1.3,41625.0,41621.0,0.0011]
[1641910825498,0.60595823,41624.0,41621.0,0.0011]
[1641910825692,0.60595823,41624.0,41620.0,0.0011]
[1641910825693,1.375678,41622.0,41620.0,0.0011]
[1641910825894,0.80296015,41621.0,41609.0,1.0066]
[1641910826095,1.675678,41618.0,41609.0,1.0066]
[1641910826295,0.375678,41614.0,41609.0,0.1011]
[1641910826495,0.375678,41611.0,41610.0,0.0011]
[1641910826736,0.542268,41611.0,41610.0,0.0011]
[1641910826936,0.91008841,41611.0,41609.0,0.0972]
[1641910827139,0.5335683,41610.0,41609.0,0.0972]
[1641910827336,1.675678,41609.0,41601.0,0.11]
[1641910827539,0.06011266,41604.0,41601.0,0.11]
[1641910827738,0.375678,41603.0,41601.0,0.11]
[1641910827938,0.54646888,41603.0,41601.0,0.11]
[1641910828242,0.925678,41602.0,41601.0,0.1098917]
[1641910828438,0.925678,41602.0,41584.0,0.047525]
[1641910828439,0.925678,41602.0,41536.0,4.6225279]
[1641910828440,1.575678,41602.0,41536.0,4.6225279]
[1641910828639,1.575678,41602.0,41496.0,2.09417823]
[1641910828640,10.0,41555.0,41496.0,2.09417823]
[1641910828847,10.0,41555.0,41197.0,0.0383253]
[1641910828848,10.0,41555.0,41549.0,0.18955084]
[1641910828849,1.3,41554.0,41549.0,0.18955084]
[1641910829044,10.0,41555.0,41553.0,0.530124]
[1641910829045,0.11293069,41555.0,41553.0,0.530124]
[1641910829244,0.16151164,41570.0,41554.0,0.480802]
[1641910829440,0.04982123,41570.0,41554.0,0.480802]
[1641910829643,0.04982123,41570.0,41567.0,0.40152107]
[1641910829840,0.04982123,41570.0,41569.0,0.476322]
[1641910830042,0.04982123,41570.0,41569.0,0.471322]
[1641910830241,0.04982123,41570.0,41569.0,0.27623]
[1641910830487,0.04982123,41570.0,41569.0,0.1]
[1641910831086,0.01,41573.0,41569.0,0.10038058]
[1641910831289,0.3574,41583.0,41574.0,1.3]
[1641910831290,0.00120089,41581.0,41574.0,1.3]
[1641910831486,0.3574,41583.0,41579.0,0.05]
[1641910831687,0.1772,41588.0,41583.0,0.55]
[1641910831887,0.00123931,41592.0,41587.0,0.350495]
[1641910832087,0.33720054,41596.0,41588.0,0.4189668]
[1641910832288,0.23550399,41595.0,41588.0,0.4189668]
[1641910832487,0.60238457,41595.0,41589.0,0.34974609]
[1641910832688,0.024876,41590.0,41581.0,0.08843454]
[1641910832888,0.1,41587.0,41581.0,0.08843454]
[1641910833087,0.33503994,41586.0,41583.0,0.00268163]
[1641910833287,0.024876,41590.0,41583.0,0.00268163]
[1641910833490,0.32145633,41586.0,41583.0,0.00268163]
[1641910833687,0.39598945,41590.0,41584.0,0.33927289]
[1641910833688,0.06107,41585.0,41584.0,0.33927289]